[Event "Swedish Chess Championship 2021: Mastarklassen-Elit"]
[Site "Scandic Helsingborg Nord, Florettgatan 41, Helsingborg, Sweden"]
[Date "2021.07.11"]
[Round "9.4"]
[White "Bellon Lopez, Juan Manuel"]
[Black "Lindberg, Bengt"]
[Result "1-0"]
[TimeControl "90 minutes for 40 moves + 30 minutes for the rest of the game + 30 seconds per move from move one."]
[WhiteTitle "GM"]
[BlackTitle "IM"]
[WhiteFideId "2200031"]
[BlackFideId "1700359"]
[WhiteElo "2327"]
[BlackElo "2392"]

1. d4 {[%clk 01:30:54]} {[%emt 00:00:05]} Nf6 {[%clk 01:30:46]} {[%emt
00:00:14]} 2. Nc3 {[%clk 01:30:50]} {[%emt 00:00:35]} d5 {[%clk 01:31:08]}
{[%emt 00:00:07]} 3. Bg5 {[%clk 01:30:46]} {[%emt 00:00:34]} e6 {[%clk
01:30:37]} {[%emt 00:01:01]} 4. e4 {[%clk 01:31:12]} {[%emt 00:00:04]} dxe4
{[%clk 01:29:22]} {[%emt 00:01:45]} 5. Nxe4 {[%clk 01:31:30]} {[%emt 00:00:12]}
Be7 {[%clk 01:29:20]} {[%emt 00:00:32]} 6. Bxf6 {[%clk 01:31:21]} {[%emt
00:00:39]} gxf6 {[%clk 01:29:38]} {[%emt 00:00:11]} 7. Nf3 {[%clk 01:31:05]}
{[%emt 00:00:47]} a6 {[%clk 01:28:28]} {[%emt 00:01:40]} 8. c3 {[%clk
01:30:24]} {[%emt 00:01:11]} Nd7 {[%clk 01:26:07]} {[%emt 00:02:51]} 9. d5
{[%clk 01:15:12]} {[%emt 00:15:43]} e5 {[%clk 01:09:21]} {[%emt 00:17:16]} 10.
d6 {[%clk 00:59:33]} {[%emt 00:16:09]} cxd6 {[%clk 01:09:46]} {[%emt 00:00:05]}
11. Nxd6+ {[%clk 00:59:42]} {[%emt 00:00:21]} Bxd6 {[%clk 01:10:11]} {[%emt
00:00:04]} 12. Qxd6 {[%clk 01:00:01]} {[%emt 00:00:12]} Qe7 {[%clk 01:10:34]}
{[%emt 00:00:06]} 13. Qxe7+ {[%clk 00:56:54]} {[%emt 00:03:38]} Kxe7 {[%clk
01:10:59]} {[%emt 00:00:05]} 14. Bd3 {[%clk 00:56:18]} {[%emt 00:01:05]} Nc5
{[%clk 01:10:21]} {[%emt 00:01:09]} 15. Bc2 {[%clk 00:55:06]} {[%emt 00:01:43]}
Bg4 {[%clk 01:07:03]} {[%emt 00:03:48]} 16. Nh4 {[%clk 00:53:29]} {[%emt
00:02:06]} Rad8 {[%clk 01:07:12]} {[%emt 00:00:21]} 17. Nf5+ {[%clk 00:51:04]}
{[%emt 00:02:56]} Bxf5 {[%clk 01:04:59]} {[%emt 00:02:44]} 18. Bxf5 {[%clk
00:51:18]} {[%emt 00:00:16]} Nd3+ {[%clk 00:53:38]} {[%emt 00:11:50]} 19. Bxd3
{[%clk 00:47:58]} {[%emt 00:03:51]} Rxd3 {[%clk 00:51:57]} {[%emt 00:02:11]} 20.
Ke2 {[%clk 00:47:34]} {[%emt 00:00:54]} Rhd8 {[%clk 00:46:56]} {[%emt
00:05:31]} 21. Rhd1 {[%clk 00:47:39]} {[%emt 00:00:24]} Rxd1 {[%clk 00:46:27]}
{[%emt 00:01:00]} 22. Rxd1 {[%clk 00:48:05]} {[%emt 00:00:05]} Rg8 {[%clk
00:42:59]} {[%emt 00:03:57]} 23. g3 {[%clk 00:47:33]} {[%emt 00:01:01]} Ke6
{[%clk 00:43:21]} {[%emt 00:00:08]} 24. Ke3 {[%clk 00:47:24]} {[%emt 00:00:38]}
f5 {[%clk 00:42:32]} {[%emt 00:01:20]} 25. c4 {[%clk 00:42:37]} {[%emt
00:05:18]} Rc8 {[%clk 00:33:30]} {[%emt 00:09:31]} 26. b3 {[%clk 00:37:53]}
{[%emt 00:05:14]} h5 {[%clk 00:28:35]} {[%emt 00:05:25]} 27. h4 {[%clk
00:37:10]} {[%emt 00:01:12]} f6 {[%clk 00:20:48]} {[%emt 00:08:17]} 28. a4
{[%clk 00:28:51]} {[%emt 00:08:50]} Rc6 {[%clk 00:14:09]} {[%emt 00:07:08]} 29.
a5 {[%clk 00:21:48]} {[%emt 00:07:33]} Rc5 {[%clk 00:13:56]} {[%emt 00:00:43]}
30. Ra1 {[%clk 00:19:59]} {[%emt 00:02:19]} e4 {[%clk 00:12:37]} {[%emt
00:01:49]} 31. Kf4 {[%clk 00:15:48]} {[%emt 00:04:41]} Rc7 {[%clk 00:12:30]}
{[%emt 00:00:38]} 32. Rd1 {[%clk 00:15:42]} {[%emt 00:00:36]} Rg7 {[%clk
00:12:53]} {[%emt 00:00:07]} 33. c5 {[%clk 00:11:06]} {[%emt 00:05:06]} Rg4+
{[%clk 00:07:11]} {[%emt 00:06:11]} 34. Ke3 {[%clk 00:11:29]} {[%emt 00:00:07]}
f4+ {[%clk 00:07:35]} {[%emt 00:00:06]} 35. gxf4 {[%clk 00:11:53]} {[%emt
00:00:06]} Rxh4 {[%clk 00:08:02]} {[%emt 00:00:03]} 36. Kxe4 {[%clk 00:11:30]}
{[%emt 00:00:53]} f5+ {[%clk 00:01:57]} {[%emt 00:06:35]} 37. Ke3 {[%clk
00:11:52]} {[%emt 00:00:08]} Rh3+ {[%clk 00:01:32]} {[%emt 00:00:55]} 38. f3
{[%clk 00:12:17]} {[%emt 00:00:05]} Ke7 {[%clk 00:01:25]} {[%emt 00:00:36]} 39.
Rd6 {[%clk 00:11:23]} {[%emt 00:01:25]} Rh1 {[%clk 00:01:18]} {[%emt 00:00:37]}
40. Rb6 {[%clk 00:11:44]} {[%emt 00:00:07]} Ra1 {[%clk 00:00:44]} {[%emt
00:01:04]} 41. Rxb7+ {[%clk 00:11:10]} {[%emt 00:01:05]} Ke6 {[%clk 00:28:12]}
{[%emt 00:03:02]} 42. Rb6+ {[%clk 00:36:40]} {[%emt 00:05:00]} Kd5 {[%clk
00:28:36]} {[%emt 00:00:06]} 43. Rxa6 {[%clk 00:31:54]} {[%emt 00:05:17]} Kxc5
{[%clk 00:23:14]} {[%emt 00:05:51]} 44. Rf6 {[%clk 00:32:10]} {[%emt 00:00:14]}
h4 {[%clk 00:21:29]} {[%emt 00:02:15]} 45. Rxf5+ {[%clk 00:32:30]} {[%emt
00:00:10]} Kb4 {[%clk 00:21:55]} {[%emt 00:00:05]} 46. Rh5 {[%clk 00:32:28]}
{[%emt 00:00:31]} Kxb3 {[%clk 00:22:18]} {[%emt 00:00:08]} 47. Rxh4 {[%clk
00:31:16]} {[%emt 00:01:41]} Rxa5 {[%clk 00:22:20]} {[%emt 00:00:29]} 48. Rh8
{[%clk 00:29:24]} {[%emt 00:02:21]} Kc4 {[%clk 00:22:10]} {[%emt 00:00:40]} 49.
Ke4 {[%clk 00:29:24]} {[%emt 00:00:29]} Kd5+ {[%emt 00:02:47]} 1-0